Cogmind - Beta 15 @@@ ROGUE MODE // 2025.06.06 @ 22:22:26 Player: nado Result: Destroyed by W0-031(R) with Subdweller Laser Performance ------------- Evolutions (0) 0 Regions Visited (2) 400 Robots Destroyed (20) 100 Value Destroyed (523) 523 Prototype IDs (0) 0 Alien Tech Used (0) 0 Bonus (0) 0 TOTAL SCORE: 1023 Bonus ------- None Cogmind --------- Core Integrity 0/250 Matter 266/300 Energy 200/200 System Corruption 3% Temperature Cool (6) Movement Rolling (120) Ox1 Location -10/Subcaves Parts ------- > --- POWER (1) -------- Subdweller Power Source > --- PROPULSION (2) --- Compact Wheel Subdweller Monowheel > --- UTILITY (2) ------ Large Storage Unit Seismic Detector > --- WEAPON (2) ------- Battle Rifle Barrage Gun > --- INVENTORY (15) --- Subdweller Power Source Light Nuclear Core Improved Heat Sink Disposable Heat Sink Terrain Scanner Weapon Shielding Scrap Shield Subdweller Beam Cannon Subdweller Beam Cannon Battle Cannon Battle Cannon Peak State ------------ > --- POWER ------------ Subdweller Power Source > --- PROPULSION ------- Compact Wheel Subdweller Monowheel > --- UTILITY ---------- Large Storage Unit Seismic Detector > --- WEAPON ----------- Battle Rifle Barrage Gun > --- INVENTORY -------- Subdweller Power Source Light Nuclear Core Improved Heat Sink Disposable Heat Sink Terrain Scanner Weapon Shielding Scrap Shield Subdweller Beam Cannon Subdweller Beam Cannon Battle Cannon Battle Cannon [Rating: 14] Favorites ----------- Power Light Ion Engine Engine Light Ion Engine Propulsion Light Treads Treads Light Treads Leg Aluminum Leg Wheel Compact Wheel Utility Large Storage Unit Device Seismic Detector Storage Large Storage Unit Protection Weapon Shielding Weapon Assault Rifle Energy Gun Subdweller Laser Ballistic Gun Assault Rifle Special Weapon Mining Laser Build | -11 -10 -10 ------- Run | Yrd Mat Sub Slots Evolved . | . . . Power . | . . . Propulsion . | . . . Utility . | . . . Weapon . | . . . Parts Attached 20 | . 6 14 Power 3 | . 1 2 Engine 3 | . 1 2 Core . | . . . Reactor . | . . . Propulsion 6 | . 2 4 Treads 3 | . 2 1 Leg . | . . . Wheel 3 | . . 3 Hover . | . . . Flight . | . . . Utility 4 | . 2 2 Device 2 | . 1 1 Storage 1 | . 1 . Processor . | . . . Hackware . | . . . Protection 1 | . . 1 Artifact . | . . . Weapon 7 | . 1 6 Energy Gun 4 | . 1 3 Energy Cannon . | . . . Ballistic Gun 2 | . . 2 Ballistic Cannon . | . . . Launcher . | . . . Special Weapon 1 | . . 1 Impact Weapon . | . . . Slashing Weapon . | . . . Piercing Weapon . | . . . Special Melee Weapon . | . . . Unidentified Prototypes . | . . . Parts Lost 7 | . 1 6 Power 1 | . 1 . Propulsion 3 | . . 3 Utility . | . . . Weapon 3 | . . 3 Highest Loss Streak 2 | . 1 2 To Critical Strikes . | . . . Average Backups 11 | 6 9 12 Power 1 | 1 1 1 Propulsion 3 | 4 4 1 Utility 3 | . 1 4 Weapon 3 | 1 2 4 Tool/Special . | . . . Unused Backups 20 | 6 2 12 Power 4 | 1 1 2 Propulsion 3 | 2 . 1 Utility 5 | 1 1 3 Weapon 8 | 2 . 6 Tool/Special . | . . . Average Slot Usage (%) 94 | . 89 99 Engine 12 | . 10 14 Treads 17 | . 16 18 Leg 5 | . 11 . Wheel 4 | . . 8 Device 10 | . 7 13 Storage 14 | . 14 14 Energy Gun 14 | . 14 14 Ballistic Gun 13 | . 14 13 Peak Build Rating 14 | 6 11 14 Average Rating 9 | 6 8 11 On Entrance 7 | 6 6 11 Naked Turns . | . . . Heaviest Build 32 | 11 31 32 Greatest Support 40 | 20 40 40 Greatest Overweight (x) 1 | . 1 1 Average Overweight (x) . | . . . Largest Inventory Capacity 15 | 8 15 15 Average Capacity 14 | 8 14 15 Most Carried 15 | 7 12 15 Average Carried 11 | 6 9 13 Final Capacity 15 | 8 15 15 Final Carried 12 | 7 11 12 Class Distribution -------------------- 100% | Mutant Dominant Class ---------------- Mutant | -10/Materials Mutant | -10/Subcaves Resources | -11 -10 -10 ----------- Run | Yrd Mat Sub Matter Collected 608 | 212 141 255 Remotely . | . . . Salvage Created 668 | 84 315 269 Parts 41 | 6 21 14 Haulers Intercepted 1 | . 1 . Recyclers Shooed . | . . . Parts Field Recycled . | . . . Retrieved Matter . | . . . Parts Self-Destructed 6 | . . 6 Prevented . | . . . Kills | -11 -10 -10 ------- Run | Yrd Mat Sub Combat Hostiles Destroyed 16 | . 9 7 Guns 16 | . 9 7 Classes Destroyed 8 | 2 4 2 Tunneler 1 | 1 . . Hauler 1 | . 1 . Recycler 1 | 1 . . Watcher 1 | . 1 . Swarmer 5 | . 5 . Grunt 7 | . 4 3 Sentry 1 | . . 1 Subdweller 3 | . . 3 Best Kill Streak 3 | 2 3 2 Combat Bots Only 3 | . 3 2 Max Kills in Single Turn 1 | 1 1 1 Gunslinging . | . . . Exploded . | . . . Melee . | . . . Uniques/NPCs Destroyed . | . . . Combat | -11 -10 -10 -------- Run | Yrd Mat Sub Hostile Shots Fired 124 | . 66 58 Missed 35 | . 20 15 Hits 89 | . 46 43 Projectile 89 | . 46 43 Critical Strikes 1 | . . 1 Damage Taken 1154 | . 464 690 Core 255 | . 68 187 Absorbed by Shields . | . . . Redirected to Shielding 11 | . . 11 Core Remaining (%) 100 | 100 . . Volleys Fired 70 | 4 32 34 Largest 2 | 2 2 2 Hottest 140 | 60 85 140 Shots Fired 143 | 8 65 70 Gun 141 | 8 65 68 Cannon . | . . . Launcher . | . . . Special 2 | . . 2 Kinetic 67 | 4 32 31 Thermal 76 | 4 33 39 Explosive . | . . . Electromagnetic . | . . . Robot Hit Streak 14 | 3 6 14 Robot Miss Streak 5 | 2 5 2 Penetration Max . | . . . Secondary Targets 2 | . 1 1 Max Gunslinging Chain 1 | . 1 1 Shots Hit Robots 88 | 4 34 50 Core Hits 34 | 3 17 14 Critical Kills . | . . . Critical Parts Destroyed . | . . . Critical Strikes . | . . . Melee Attacks . | . . . Impact . | . . . Slashing . | . . . Piercing . | . . . Sneak Attacks . | . . . Combat Hostiles . | . . . Follow-up Attacks . | . . . Damage Inflicted 1300 | 51 457 792 Guns 1252 | 51 457 744 Cannons . | . . . Explosions . | . . . Melee . | . . . Ramming . | . . . Kinetic 493 | 28 191 274 Thermal 807 | 23 266 518 Explosive . | . . . Electromagnetic . | . . . Impact . | . . . Slashing . | . . . Piercing . | . . . Highest Corruption 3 | . 3 3 Average Corruption 2 | . 2 3 Corruption Purged . | . . . Corruption Blocked . | . . . Effects 29 | . 7 22 Message Errors 6 | . 2 4 Matter Fused 7 | . 2 5 Heat Flow Errors 2 | . 1 1 Energy Discharges 2 | . . 2 Data Loss (minor) 7 | . 1 6 Misfires 4 | . 1 3 Weapon Failures 1 | . . 1 Overload Shots . | . . . Overflow Damage . | . . . Projectiles . | . . . Explosions . | . . . Melee . | . . . Knockbacks . | . . . Impact . | . . . Kinetic . | . . . Secondary . | . . . Self-Inflicted Damage . | . . . Shots . | . . . Rammed 1 | . 1 . Targets Rammed 1 | . 1 . Kicked . | . . . Crushed . | . . . Highest Temperature 125 | . 101 125 Average Temperature 16 | . 28 11 Received Heat Transfer 411 | . 129 282 Siege Activations . | . . . Martial Activations . | . . . Shielding Activations . | . . . Robots Disrupted . | . . . Combat Hostiles . | . . . Robots Corrupted . | . . . Combat Hostiles . | . . . Parts Fried . | . . . Impact Corruptions . | . . . Robots Melted . | . . . Combat Hostiles . | . . . Parts Melted . | . . . Heat Transferred 1614 | 50 643 921 Parts Sabotaged . | . . . Parts Stolen . | . . . Parts Stripped . | . . . Power Chain Reactions . | . . . Alert | -11 -10 -10 ------- Run | Yrd Mat Sub Maximum Alert Level . | . . . Low Security (%) 100 | 100 100 . Level 1 . | . . . Level 2 . | . . . Level 3 . | . . . Level 4 . | . . . Level 5 . | . . . High Security . | . . . Max Security . | . . . Peak Influence 124 | 5 124 . Initial . | . . . Average 32 | 1 33 . Influence Increases 379 | 10 279 90 Destroy 0b10 Robot/C 260 | . 180 80 Destroy 0b10 Robot/NC 20 | 10 10 . Destroy Leader 54 | . 44 10 Successful Hack 30 | . 30 . Lose Combat Pursuer 15 | . 15 . Influence Decreases 379 | 10 253 116 Entered New Map 14 | . . 14 Time Decay 345 | 10 243 92 Lost Part 20 | . 10 10 Squads Dispatched . | . . . Investigation . | . . . Extermination . | . . . Reinforcement . | . . . Assault . | . . . Garrison . | . . . Intercept . | . . . Searches Triggered . | . . . Construction Impeded . | . . . Haulers Reinforced . | . . . Active Scanning Responses . | . . . Cargo Convoy Interrupts . | . . . Stealth | -11 -10 -10 --------- Run | Yrd Mat Sub Distress Signals . | . . . Communications Jammed . | . . . Distress Signals . | . . . Times Spotted 24 | . 15 9 Peak Tracking Total 5 | . 5 2 Tactical Retreats 1 | . 1 . Traps | -11 -10 -10 ------- Run | Yrd Mat Sub Traps Triggered 3 | . 3 . Indirectly . | . . . Trap Hack Attempts . | . . . Triggered . | . . . Disarmed . | . . . Reprogrammed . | . . . Reused . | . . . Traps Extracted . | . . . Installed . | . . . Triggered . | . . . Machines | -11 -10 -10 ---------- Run | Yrd Mat Sub Machines Disabled . | . . . Max in Single Turn . | . . . Machines Repaired . | . . . Machines Dismantled . | . . . Machines Sabotaged . | . . . Overloaded Fab Kills . | . . . Hacking | -11 -10 -10 --------- Run | Yrd Mat Sub Machines Accessed 9 | . 6 3 Terminals 6 | . 6 . Fabricators . | . . . Repair Stations . | . . . Recycling Units . | . . . Scanalyzers . | . . . Garrison Access . | . . . Total Hacks 24 | . 16 8 Successful 15 | . 7 8 Failed 9 | . 9 . Catastrophic 1 | . 1 . Database Lockouts . | . . . Manual 16 | . 16 . Terminals 16 | . 16 . Fabricators . | . . . Repair Stations . | . . . Recycling Units . | . . . Scanalyzers . | . . . Garrison Access . | . . . Terminal Hacks 8 | . . 8 Record 6 | . . 6 Open Door 1 | . . 1 Release Object 1 | . . 1 Fabricator Hacks . | . . . Repair Station Hacks . | . . . Recycling Unit Hacks . | . . . Scanalyzer . | . . . Garrison Access Hacks . | . . . Unauthorized Hacks 7 | . 7 . Terminals 7 | . 7 . Botnet 1 | . 1 . Skim 6 | . 6 . Fabricators . | . . . Repair Stations . | . . . Recycling Units . | . . . Scanalyzers . | . . . Garrison Access . | . . . Data Cores Recovered . | . . . Used . | . . . Hacking Detections 5 | . 5 . Full Trace Events 1 | . 1 . Feedback Events . | . . . Feedback Blocked . | . . . Robot Schematics Acquired . | . . . Robots Built . | . . . Authchips . | . . . Time . | . . . Total Robot Build Rating . | . . . Part Schematics Acquired . | . . . Parts Built . | . . . Authchips . | . . . Time . | . . . Total Part Build Rating . | . . . Parts Repaired . | . . . Time . | . . . Parts Recycled . | . . . Recycled Matter . | . . . Retrieved Matter . | . . . Retrieved Components . | . . . Parts Scanalyzed . | . . . Part Schematics Acquired . | . . . Parts Damaged . | . . . Bothacking | -11 -10 -10 ------------ Run | Yrd Mat Sub Used RIF Installer . | . . . Robots Hacked . | . . . Non-combat . | . . . Combat . | . . . Robot Hacks Applied . | . . . Relay Couplers Released . | . . . Fabnet Peak Effective % . | . . . Robots Rewired . | . . . Allies Hacked . | . . . Hacks Repelled . | . . . Allies | -11 -10 -10 -------- Run | Yrd Mat Sub Total Allies . | . . . Largest Group . | . . . Highest-Rated Group . | . . . Highest-Rated Ally . | . . . Total Orders . | . . . Ally Attacks . | . . . Total Damage . | . . . Kills . | . . . Allies Corrupted . | . . . Allies Melted . | . . . Intel | -11 -10 -10 ------- Run | Yrd Mat Sub Active Infowar (turns) 1376 | . . 1376 Seismic 1376 | . . 1376 Robot Analysis Total . | . . . Derelict Logs Recovered 1 | . . 1 Drone Launches . | . . . Drone Recoveries . | . . . Exploration | -11 -10 -10 ------------- Run | Yrd Mat Sub Turns Passed 2767 | 66 1287 1414 Spaces Moved 1620 | 43 593 984 Core . | . . . Treads 529 | . 297 232 Legs 339 | 43 296 . Wheels 752 | . . 752 Hover . | . . . Flight . | . . . Fastest Speed 115 | 120 120 115 Average Speed 141 | 120 168 126 Slowest Speed 240 | 120 190 240 Overloaded Moves . | . . . Propulsion Burnouts . | . . . Robots Hopped . | . . . Potential Cave-ins . | . . . Cave-ins Triggered . | . . . Exploration Rate (%) 40 | 3 80 37 Regions Visited 2 Branch Regions 1 Pre-discovered Areas 2 | . 1 1 Known Exits Taken 1 | . 1 . Unknown Exits Taken 1 | 1 . . Scrap Searched 8 | . . 8 Spaces Dug . | . . . Terrain Destroyed . | . . . Melee . | . . . Projectile . | . . . AOE . | . . . Terrain Rammed . | . . . Walls Destroyed . | . . . Machines Disabled . | . . . Actions | -11 -10 -10 --------- Run | Yrd Mat Sub Total 1952 | 49 818 1085 Wait 209 | 2 181 26 Move 1618 | 42 592 984 Hop . | . . . Pick Up 18 | 1 4 13 Fast Attach 5 | . 2 3 Attach 8 | . 1 7 Detach 3 | . 1 2 Swap 8 | . 3 5 Drop 12 | . 1 11 Fire 70 | 4 32 34 Melee . | . . . Ram . | . . . Kick . | . . . Crush 1 | . 1 . Escape Stasis . | . . . Rewire . | . . . Trap . | . . . Miscellaneous . | . . . Route ------- -11/Scrapyard -10/Materials (discovered 5 exits: *Mat x3 / *Min / *Sub) -10/Subcaves History --------- Turn | Location | Event 1 | -11/Scrapyard | Discovered new exit (range 1) 67 | -11/Scrapyard | Entered Materials 314 | -10/Materials | Build established: Mutant 440 | -10/Materials | Discovered new exit (range 3) 589 | -10/Materials | Discovered new exit (range 6) 753 | -10/Materials | Discovered new exit (range 12) 925 | -10/Materials | Learned Storage trap positions 997 | -10/Materials | Identified exit to Mines 997 | -10/Materials | Identified exit to Subcaves 1061 | -10/Materials | Learned 4 Recycling zone layouts 1116 | -10/Materials | Learned location of 2 exits from Materials 1161 | -10/Materials | Learned Storage emergency access door positions 1194 | -10/Materials | Learned location of 1 exit from Recycling 1249 | -10/Materials | Learned location of 1 exit from Storage 1346 | -10/Materials | Identified exit to Materials 1354 | -10/Materials | Entered Subcaves 1354 | -10/Subcaves | Learned location of 1 exit from Materials 1644 | -10/Subcaves | Core integrity fell below 50% 2537 | -10/Subcaves | Visited Clippyterm 2541 | -10/Subcaves | Learned location of Section 7 (-3) 2541 | -10/Subcaves | Learned 40 Factory zone layouts 2761 | -10/Subcaves | Core integrity fell below 20% 2768 | -10/Subcaves | Destroyed by W0-031(R) with Subdweller Laser Last Messages --------------- 02671_ Connecting with UFD SUBCON Station... >>Open Door Sealed Heavy Doors opened. 02680_ Connecting with SUBCON Basin Controls... >>Record! "Subatomizer Containment" Subatomizers are really quite dangerous, especially when stimulated during the collection process in preparation for SEP insertion. Secure containment is priority number one! Although mostly just a persistent nuisance in their natural Subcaves environment where a certain balance has been achieved, there is a high probability that sudden introduction into previously unexposed areas could cause more extreme side effects. Take all precautions to prevent this from happening. >>Release Inventory Accessing inventory controls... Collection purity confirmed 100%... Ejecting SUBCON Basin... Delivery behind schedule, handle with care! 02694_ System corrupted: Heat flow error (+165). 02762_ Sub. Laser destroyed. 02762_ Lgt. Treads destroyed. Map ----- +----------------------------------------------------+ | #????#"" "#"X### #? #???????????????? | | #????#"" ## ##? #???????????????? | | ## ##???#"" "#" # ##?? ##??????????????? | | ?## #???#""& "#" # # #??# #??????????????? | | ?## #???#"X "### # ##?# #??????????????? | | ## #???#"""""#?## ## #?# ##??????????????? | | # ##???#######??### ### #??????????????? | | # ##???????????????# #??????????????? | | ####???????????????# #### ##??????????????? | | ##?????????????????# ##??# #???????????????? | | ###???????????????#####???# ##??????????????? | | ##?????????????????????## #??????????????? | | #?????????????????????# ## #??????????????? | | #?????????????????????## ### #??????????????? | | #?????????????????????## ####??????????????? | | #?????????????????????# #?????????????????? | | ##????????????????????# ##?????????????????? | | #????????????????????# #?????????????????? | | " #????????????????????## ##?????????????????? | | "" ##??????????????????### #?????????????????? | | " ##??????????????????# ## ##?????????????????? | | "" #???????????????????# #??????????????????? | | ""####???????????????????# #??????????????????? | | ###?????????????????????## #??????????????????? | | ????????????????????????# ###??????????????????? | | ????????????????????????#@ #???????????????????? | | ????????????????????????##RR"#???????????????????? | | ????????????????????????# ""##???????????????????? | | ????????????????????????## "#????????????????????? | | ????????????????????????? ""#????????????????????? | | ?????????????????????????# #????????????????????? | | ?????????????????????????# #????????????????????? | | ?????????????????????????# ????????????????????? | | ????????????????????????? """????????????????????? | | ????????????????????????? ????????????????????? | | ????????????????????????? ?????????????????????? | | ????????????????????????? ???????????????????????? | | ????????????????????????? ???????????????????????? | | ?????????????????????????????????????????????????? | | ?????????????????????????????????????????????????? | | ?????????????????????????????????????????????????? | | ?????????????????????????????????????????????????? | | ?????????????????????????????????????????????????? | | ?????????????????????????????????????????????????? | | ?????????????????????????????????????????????????? | | ?????????????????????????????????????????????????? | | ?????????????????????????????????????????????????? | | ?????????????????????????????????????????????????? | | ?????????????????????????????????????????????????? | | ?????????????????????????????????????????????????? | +----------------------------------------------------+ Best States ------------- Heat Dissipation 39 Energy Generation 15 Energy Capacity 250 Matter Stores 300 Matter Capacity 300 Sight Range 16 Terrain Scan Density 10 Weapon Shielding 33 Evasion (%) 55 Recoil Reduction 2 Item Schematics ----------------- None Robot Schematics ------------------ None Fabricated ------------ Nothing Repaired ---------- Nothing Alien Tech Used ----------------- None Achievements -------------- None Challenges ------------ None Game ------ Seed PowerGuidanceBeam Manual? 0 Play Time 00:25:51 Cumulative 154.5 hours Start 2025.06.06 @ 21:01:33 End 2025.06.06 @ 22:22:26 Sessions 1 Manual Loads 0 Difficulty Rogue Special Mode None Game No. 80 Rogue 80 Adventurer 0 Explorer 0 Win Type - Total 4 Types 3/0/1/0/0/0/0/0/0/0 Lore% 49 Gallery% 42 Achievement% 44 Wizard Run 0 Options --------- Layout 0 ASCII 0 Keyboard 1 Movement Vi Keybinds 0 Fullscreen 2 Font 24/Terminus Map View 76x50 Zoom Use 0% Tactical HUD 1 Map Filters NONE Filters NONE Steam 1 RUN: 9e36de10-cf4a-4e2c-9a6f-b723789dbcf1